fUST/lending_fUST_20260107
["ID","MTS","AMOUNT","RATE_DAILY","PERIOD"]
[400652388,1767768637663,-300.0,0.00012325,2]
[400652389,1767768637672,-300.0,0.00012325,2]
[400652390,1767768637681,-437.0,0.00012325,2]
[400652391,1767768637691,-594.0,0.00012325,2]
[400652392,1767768637700,-2353.44599393,0.00012326,2]
[400652393,1767768637709,-500.0,0.00012326,2]
[400652394,1767768637718,-2353.44599393,0.00012326,2]
[400652395,1767768637728,-500.0,0.00012326,2]
[400652396,1767768637737,-500.0,0.00012326,2]
[400652397,1767768637746,-2353.44599393,0.00012326,2]
[400652398,1767768637755,-500.0,0.00012326,2]
[400652399,1767768637765,-395.40919613,0.00012326,2]
[400652400,1767768637776,-2353.44599393,0.00012326,2]
[400652401,1767768637786,-500.0,0.00012326,2]
[400652402,1767768637796,-2353.44599393,0.00012326,2]
[400652403,1767768637804,-500.0,0.00012326,2]
[400652404,1767768637815,-2353.44599393,0.00012326,2]
[400652405,1767768637824,-500.0,0.00012326,2]
[400652406,1767768637834,-2353.44599393,0.00012326,2]
[400652407,1767768637843,-500.0,0.00012326,2]
[400652408,1767768637852,-2353.44599393,0.00012326,2]
[400652409,1767768637861,-500.0,0.00012326,2]
[400652410,1767768637871,-2353.44599393,0.00012326,2]
[400652411,1767768637880,-500.0,0.00012326,2]
[400652412,1767768638028,-339.64563627,0.00012326,2]
[400652413,1767768638039,-2353.44599393,0.00012326,2]
[400652414,1767768638048,-500.0,0.00012326,2]
[400652415,1767768638058,-2353.44599393,0.00012326,2]
[400652416,1767768638067,-500.0,0.00012326,2]
[400652417,1767768638077,-2353.44599393,0.00012326,2]
[400652418,1767768638086,-500.0,0.00012326,2]
[400652419,1767768638095,-2353.44599393,0.00012326,2]
[400652420,1767768638104,-500.0,0.00012326,2]
[400652421,1767768638114,-2353.44599393,0.00012326,2]
[400652422,1767768638123,-500.0,0.00012326,2]
[400652423,1767768638132,-2353.44599393,0.00012326,2]
[400652424,1767768638142,-500.0,0.00012326,2]
[400652425,1767768638151,-2353.44599393,0.00012326,2]
[400652426,1767768638161,-500.0,0.00012326,2]
[400652427,1767768638171,-2353.44599393,0.00012326,2]
[400652428,1767768638181,-500.0,0.00012326,2]
[400652429,1767768638190,-2353.44599393,0.00012326,2]
[400652430,1767768638200,-500.0,0.00012326,2]
[400652431,1767768638210,-2353.44599393,0.00012326,2]
[400652432,1767768638219,-500.0,0.00012326,2]
[400652433,1767768638229,-500.0,0.00012326,2]
[400652434,1767768638239,-2353.44599393,0.00012326,2]
[400652435,1767768638248,-500.0,0.00012326,2]
[400652436,1767768638257,-2353.44599393,0.00012326,2]
[400652437,1767768638266,-500.0,0.00012326,2]
[400652438,1767768638275,-2353.44599393,0.00012326,2]
[400652439,1767768638285,-500.0,0.00012326,2]
[400652440,1767768638294,-2353.44599393,0.00012326,2]
[400652441,1767768638303,-500.0,0.00012326,2]
[400652442,1767768638312,-2353.44599393,0.00012326,2]
[400652443,1767768638322,-2353.44599393,0.00012326,2]
[400652444,1767768638331,-2353.44599393,0.00012326,2]
[400652445,1767768638341,-2353.44599393,0.00012326,2]
[400652446,1767768638350,-2353.44599393,0.00012326,2]
[400652447,1767768638360,-2353.44599393,0.00012326,2]
[400652448,1767768638370,-2353.44599393,0.00012326,2]
[400652449,1767768638379,-412.82402184,0.00012326,2]
[400652450,1767768638389,-500.0,0.00012326,2]
[400652451,1767768638399,-500.0,0.00012326,2]
[400652452,1767768638410,-500.0,0.00012326,2]
[400652453,1767768638420,-500.0,0.00012326,2]
[400652454,1767768638429,-500.0,0.00012326,2]
[400652455,1767768638440,-500.0,0.00012326,2]
[400652456,1767768638449,-500.0,0.00012326,2]
[400652457,1767768638458,-500.0,0.00012326,2]
[400652458,1767768638468,-500.0,0.00012326,2]
[400652459,1767768638477,-500.0,0.00012326,2]
[400652460,1767768638486,-500.0,0.00012326,2]
[400652461,1767768638495,-500.0,0.00012326,2]
[400652462,1767768638504,-500.0,0.00012326,2]
[400652463,1767768638513,-500.0,0.00012326,2]
[400652464,1767768638523,-500.0,0.00012326,2]
[400652465,1767768638531,-500.0,0.00012326,2]
[400652466,1767768638540,-500.0,0.00012326,2]
[400652467,1767768638550,-500.0,0.00012326,2]
[400652468,1767768638559,-500.0,0.00012326,2]
[400652469,1767768638568,-500.0,0.00012326,2]
[400652470,1767768638577,-500.0,0.00012326,2]
[400652471,1767768638586,-500.0,0.00012326,2]
[400652472,1767768638597,-500.0,0.00012326,2]
[400652473,1767768638608,-477.12562135,0.00012326,2]
[400652474,1767768638617,-500.0,0.00012326,2]
[400652475,1767768638626,-500.0,0.00012326,2]
[400652476,1767768638635,-500.0,0.00012326,2]
[400652477,1767768638646,-500.0,0.00012326,2]
[400652478,1767768638655,-500.0,0.00012326,2]
[400652479,1767768638664,-500.0,0.00012326,2]
[400652480,1767768638676,-500.0,0.00012326,2]
[400652481,1767768638685,-500.0,0.00012326,2]
[400652482,1767768638694,-500.0,0.00012326,2]
[400652483,1767768638703,-500.0,0.00012326,2]
[400652484,1767768638713,-500.0,0.00012326,2]
[400652485,1767768638722,-500.0,0.00012326,2]
[400652486,1767768638731,-500.0,0.00012326,2]
[400652487,1767768638741,-500.0,0.00012326,2]
[400652488,1767768638751,-500.0,0.00012326,2]
[400652489,1767768638761,-500.0,0.00012326,2]
[400652490,1767768638771,-500.0,0.00012326,2]
[400652491,1767768638781,-160.28836357,0.00012326,2]
[400652492,1767768638790,-500.0,0.00012327,2]
[400652493,1767768638800,-500.0,0.00012327,2]
[400652494,1767768638810,-500.0,0.00012327,2]
[400652495,1767768638819,-539.13654861,0.00012327,2]
[400652496,1767768638830,-500.0,0.00012327,2]
[400652497,1767768638839,-500.0,0.00012327,2]
[400652498,1767768638848,-500.0,0.00012327,2]
[400652499,1767768638859,-500.0,0.00012327,2]
[400652500,1767768638869,-500.0,0.00012327,2]
[400652501,1767768638879,-500.0,0.00012327,2]
[400652502,1767768638889,-500.0,0.00012327,2]
[400652503,1767768638899,-500.0,0.00012327,2]
[400652504,1767768638908,-500.0,0.00012327,2]
[400652505,1767768638918,-500.0,0.00012327,2]
[400652506,1767768638928,-500.0,0.00012327,2]
[400652507,1767768638937,-500.0,0.00012327,2]
[400652508,1767768638947,-500.0,0.00012327,2]
[400652509,1767768638956,-500.0,0.00012327,2]
[400652510,1767768638966,-500.0,0.00012327,2]
[400652511,1767768638975,-500.0,0.00012327,2]
[400652512,1767768638984,-500.0,0.00012327,2]
[400652513,1767768638994,-500.0,0.00012327,2]
[400652514,1767768639003,-500.0,0.00012327,2]
[400652515,1767768639012,-500.0,0.00012327,2]
[400652516,1767768639022,-500.0,0.00012327,2]
[400652517,1767768639031,-500.0,0.00012327,2]
[400652518,1767768639041,-500.0,0.00012327,2]
[400652519,1767768639050,-500.0,0.00012327,2]
[400652520,1767768639060,-500.0,0.00012327,2]
[400652521,1767768639069,-500.0,0.00012327,2]
[400652522,1767768639079,-500.0,0.00012327,2]
[400652523,1767768639089,-500.0,0.00012327,2]
[400652524,1767768639099,-500.0,0.00012327,2]
[400652525,1767768639108,-500.0,0.00012327,2]
[400652526,1767768639117,-500.0,0.00012327,2]
[400652527,1767768639129,-500.0,0.00012327,2]
[400652528,1767768639139,-500.0,0.00012327,2]
[400652529,1767768639149,-500.0,0.00012327,2]
[400652530,1767768639159,-500.0,0.00012327,2]
[400652531,1767768639168,-500.0,0.00012327,2]
[400652532,1767768639177,-500.0,0.00012327,2]
[400652533,1767768639186,-500.0,0.00012327,2]
[400652534,1767768639195,-500.0,0.00012327,2]
[400652535,1767768639204,-500.0,0.00012327,2]
[400652536,1767768639214,-500.0,0.00012327,2]
[400652537,1767768639223,-500.0,0.00012327,2]
[400652538,1767768639232,-500.0,0.00012327,2]
[400652539,1767768639241,-500.0,0.00012327,2]
[400652540,1767768639250,-500.0,0.00012327,2]
[400652541,1767768639260,-500.0,0.00012327,2]
[400652542,1767768639269,-281.26187454,0.00012327,2]
[400652543,1767768639278,-500.0,0.00012327,2]
[400652544,1767768639287,-500.0,0.00012327,2]
[400652545,1767768639299,-500.0,0.00012327,2]
[400652546,1767768639308,-500.0,0.00012327,2]
[400652548,1767768639318,-500.0,0.00012327,2]
[400652549,1767768639328,-500.0,0.00012327,2]
[400652550,1767768639337,-500.0,0.00012327,2]
[400652551,1767768639347,-554.93147211,0.00012327,2]
[400652552,1767768639356,-554.93147211,0.00012327,2]
[400652553,1767768639365,-554.93147211,0.00012327,2]
[400652554,1767768639375,-554.93147211,0.00012327,2]
[400652555,1767768639384,-554.93147211,0.00012327,2]
[400652556,1767768639394,-554.93147211,0.00012327,2]
[400652557,1767768639403,-554.93147211,0.00012327,2]
[400652558,1767768639412,-554.93147211,0.00012327,2]
[400652559,1767768639421,-554.93147211,0.00012327,2]
[400652560,1767768639431,-500.0,0.00012327,2]
[400652561,1767768639440,-500.0,0.00012327,2]
[400652562,1767768639450,-500.0,0.00012327,2]
[400652563,1767768639459,-500.0,0.00012327,2]
[400652564,1767768639468,-500.0,0.00012327,2]
[400652565,1767768639478,-500.0,0.00012327,2]
[400652566,1767768639487,-500.0,0.00012327,2]
[400652568,1767768639496,-500.0,0.00012327,2]
[400652570,1767768639505,-500.0,0.00012327,2]
[400652571,1767768639515,-500.0,0.00012327,2]
[400652572,1767768639523,-500.0,0.00012327,2]
[400652573,1767768639533,-500.0,0.00012327,2]
[400652574,1767768639542,-500.0,0.00012327,2]
[400652575,1767768639551,-500.0,0.00012327,2]
[400652576,1767768639560,-500.0,0.00012327,2]
[400652577,1767768639570,-500.0,0.00012327,2]
[400652578,1767768639579,-500.0,0.00012327,2]
[400652579,1767768639587,-500.0,0.00012327,2]
[400652580,1767768639599,-500.0,0.00012327,2]
[400652581,1767768639608,-500.0,0.00012327,2]
[400652582,1767768639618,-500.0,0.00012327,2]
[400652583,1767768639635,-500.0,0.00012327,2]
[400652584,1767768639655,-500.0,0.00012327,2]
[400652586,1767768639672,-500.0,0.00012327,2]
[400652588,1767768639682,-500.0,0.00012327,2]
[400652589,1767768639692,-500.0,0.00012327,2]
[400652590,1767768639702,-500.0,0.00012327,2]
[400652591,1767768639712,-500.0,0.00012327,2]
[400652592,1767768639721,-500.0,0.00012327,2]
[400652593,1767768639730,-439.1325961,0.00012327,2]
[400652594,1767768639740,-500.0,0.00012327,2]
[400652595,1767768639749,-500.0,0.00012327,2]
[400652596,1767768639758,-500.0,0.00012327,2]
[400652597,1767768639767,-500.0,0.00012327,2]
[400652598,1767768639777,-500.0,0.00012327,2]
[400652599,1767768639786,-50000.0,0.00012327,2]
[400652600,1767768639795,-500.0,0.00012328,2]
[400652601,1767768639805,-1538.47,0.00012329,2]
[400652602,1767768639814,-1282.05,0.00012329,2]
[400652603,1767768639823,-1068.38,0.00012329,2]
[400652604,1767768639832,-890.32,0.00012329,2]
[400652605,1767768639841,-741.93,0.00012329,2]
[400652606,1767768639851,-618.27,0.00012329,2]
[400652607,1767768639860,-515.23,0.00012329,2]
[400652608,1767768639869,-429.36,0.00012329,2]
[400652609,1767768639879,-357.8,0.00012329,2]
[400652610,1767768639888,-298.16,0.00012329,2]
[400652611,1767768639897,-248.47,0.00012329,2]
[400652612,1767768639906,-207.06,0.00012329,2]
[400652614,1767768639916,-172.55,0.00012329,2]
[400652615,1767768639924,-862.77,0.00012329,2]
[400652616,1767768639935,-515.98,0.00012329,2]
[400652617,1767768639944,-429.98,0.00012329,2]
[400652618,1767768639953,-358.32,0.00012329,2]
[400652619,1767768639963,-298.6,0.00012329,2]
[400652620,1767768639972,-248.83,0.00012329,2]
[400652621,1767768639981,-207.36,0.00012329,2]
[400652622,1767768639990,-172.8,0.00012329,2]
[400652623,1767768639999,-864.04,0.00012329,2]
[400652624,1767768640008,-400.164,0.00012345,2]
[400652625,1767768640018,-184.475,0.00012345,2]
[400652626,1767768640027,-153.38350364,0.00012589,2]
[400652627,1767768640037,-151.0,0.00012589,2]
[400652628,1767768640047,-151.0,0.00012589,2]
[400652629,1767768640056,-151.0,0.00012589,2]
[400652630,1767768640066,-151.0,0.00012589,2]
[400652631,1767768640075,-151.0,0.00012589,2]
[400652632,1767768640085,-151.0,0.00012589,2]
[400652633,1767768640098,-151.0,0.00012589,2]
[400652634,1767768640107,-151.0,0.00012589,2]
[400652635,1767768640117,-151.0,0.00012589,2]
[400652636,1767768640125,-151.0,0.00012589,2]
[400652637,1767768640134,-151.0,0.00012589,2]
[400652638,1767768640144,-151.0,0.00012589,2]
[400652639,1767768640153,-151.0,0.00012589,2]
[400652640,1767768640162,-151.0,0.00012589,2]
[400652641,1767768640171,-151.0,0.00012589,2]
[400652642,1767768640180,-151.0,0.00012589,2]
[400652643,1767768640189,-154.07167593,0.00012589,2]
[400652644,1767768640198,-151.0,0.000126,2]
[400652645,1767768640207,-151.0,0.000126,2]
[400652646,1767768640216,-151.0,0.000126,2]
[400652647,1767768640225,-151.0,0.000126,2]
[400652648,1767768640234,-151.0,0.000126,2]
[400652649,1767768640243,-151.0,0.000126,2]
[400652650,1767768640252,-500.0,0.00012602,2]
[400652651,1767768640261,-500.0,0.00012876,2]
[400652652,1767768640271,-600.0,0.00012949,2]
[400652653,1767768640280,-761.0,0.00012999,2]
[400652654,1767768640289,-300.0,0.00013051,2]
[400652655,1767768640300,-300.0,0.00013051,2]
[400652656,1767768640309,-300.0,0.00013051,2]
[400652657,1767768640319,-300.0,0.00013051,2]
[400652658,1767768640328,-300.0,0.00013051,2]
[400652659,1767768640337,-300.0,0.00013051,2]
[400652660,1767768640346,-300.0,0.00013051,2]
[400652661,1767768640355,-300.0,0.00013051,2]
[400652662,1767768640364,-300.0,0.00013051,2]
[400652663,1767768640374,-300.0,0.00013051,2]
[400652664,1767768640383,-300.0,0.00013051,2]
[400652665,1767768640392,-300.0,0.00013051,2]
[400652666,1767768640401,-300.0,0.00013051,2]
[400652667,1767768640410,-300.0,0.00013051,2]
[400652668,1767768640419,-300.0,0.00013051,2]
[400652669,1767768640428,-761.0,0.00013136,2]
[400652670,1767768640437,-500.0,0.0001315,2]
[400652671,1767768640446,-500.0,0.00013273,2]
[400652672,1767768640465,-500.0,0.00013273,2]
[400652673,1767768640476,-500.0,0.00013273,2]
[400652674,1767768640486,-500.0,0.00013273,2]
[400652675,1767768640496,-500.0,0.00013273,2]
[400652676,1767768640505,-500.0,0.00013273,2]
[400652677,1767768640514,-500.0,0.00013273,2]
[400652678,1767768640523,-500.0,0.00013273,2]
[400652679,1767768640533,-500.0,0.00013273,2]
[400652680,1767768640542,-500.0,0.00013273,2]
[400652681,1767768640551,-159.6541633,0.00013273,2]
[400652682,1767768640562,-761.0,0.00013273,2]
[400652683,1767768640571,-761.0,0.0001341,2]
[400652684,1767768640580,-500.0,0.00013424,2]
[400652685,1767768640589,-285.47267851,0.00013451,2]
[400652686,1767768640602,-420.0,0.00013525,2]
[400652687,1767768640612,-420.0,0.00013525,2]
[400652688,1767768640621,-761.0,0.00013547,2]
[400652689,1767768640728,-300.0,0.00013673,2]
[400652690,1767768640739,-761.0,0.00013684,2]
[400652691,1767768640749,-379.50971857,0.00013698,2]
[400652692,1767768640759,-500.0,0.00013698,2]
[400652693,1767768640768,-500.0,0.00013698,2]
[400652694,1767768640778,-500.0,0.00013698,2]
[400652695,1767768640788,-454.13713192,0.00013698,2]
[400652696,1767768640797,-1000.0,0.00013699,2]
[400652697,1767768640807,-150746.3833375,0.00013699,2]
[400652698,1767768640816,-500.0,0.00013699,2]
[400652699,1767768640825,-500.0,0.00013699,2]
[400652700,1767768640836,-500.0,0.00013699,2]
[400652701,1767768640846,-500.0,0.00013699,2]
[400652702,1767768640856,-500.0,0.00013699,2]
[400652703,1767768640865,-500.0,0.00013699,2]
[400652704,1767768640874,-500.0,0.00013699,2]
[400652705,1767768640884,-500.0,0.00013699,2]
[400652706,1767768640894,-500.0,0.00013699,2]
[400652707,1767768640904,-500.0,0.00013699,2]
[400652708,1767768640913,-500.0,0.00013699,2]
[400652709,1767768640924,-159.55369657,0.00013699,2]
[400652710,1767768640933,-200.0,0.00013699,2]
[400652711,1767768640943,-500.0,0.00013699,2]
[400652712,1767768640953,-385.05374254,0.00013699,2]
[400652713,1767768640963,-503.9265234,0.00013792,2]
[400652714,1767768640972,-1000.0,0.00013821,2]
[400652715,1767768640982,-1000.0,0.00013821,2]
[400652716,1767768640992,-1000.0,0.00013821,2]
[400652717,1767768641001,-1000.0,0.00013821,2]
[400652718,1767768641011,-1000.0,0.00013821,2]
[400652719,1767768641020,-1000.0,0.00013821,2]
[400652720,1767768641030,-1000.0,0.00013821,2]
[400652721,1767768641039,-1000.0,0.00013821,2]
[400652722,1767768641049,-1000.0,0.00013821,2]
[400652723,1767768641058,-761.0,0.00013821,2]
[400652724,1767768641068,-161.30460818,0.00013836,2]
[400652725,1767768641077,-15000.0,0.0001386,2]
[400652726,1767768641086,-761.0,0.00013958,2]
[400652727,1767768641095,-583.63248304,0.00013987,2]
[400652728,1767768641104,-761.0,0.00014095,2]
[400652729,1767768641114,-248.21095369,0.00014175,2]
[400652730,1767768641123,-399.4388692,0.00014175,2]
[400652731,1767768641133,-600.0,0.00014221,2]
[400652732,1767768641142,-761.0,0.00014232,2]
[400652733,1767768641151,-720.0,0.00014244,2]
[400652734,1767768641160,-314.76790542,0.00014247,2]
[400652735,1767768641170,-1000.0,0.00014247,2]
[400652736,1767768641180,-1000.0,0.00014247,2]
[400652737,1767768641189,-1000.0,0.00014247,2]
[400652738,1767768641199,-1000.0,0.00014247,2]
[400652739,1767768641208,-1000.0,0.00014247,2]
[400652740,1767768641217,-1000.0,0.00014247,2]
[400652741,1767768641227,-1000.0,0.00014247,2]
[400652742,1767768641236,-1000.0,0.00014247,2]
[400652743,1767768641245,-1000.0,0.00014247,2]
[400652744,1767768641255,-192.06171966,0.00014303,2]
[400652745,1767768641264,-513.84573284,0.0001435,2]
[400652746,1767768641273,-672.22882441,0.00014368,2]
[400652747,1767768641283,-1000.0,0.00014368,2]
[400652748,1767768641291,-1500.0,0.00014368,2]
[400652749,1767768641301,-1500.0,0.00014368,2]
[400652750,1767768641311,-1500.0,0.00014368,2]
[400652751,1767768641320,-1113.60271407,0.00014368,2]
[400652752,1767768641330,-1500.0,0.00014368,2]
[400652753,1767768641339,-1500.0,0.00014368,2]
[400652754,1767768641348,-761.0,0.00014369,2]
[400652755,1767768641357,-461.04889485,0.00014389,2]
[400652756,1767768641367,-761.0,0.00014506,2]
[400652757,1767768641377,-761.0,0.00014643,2]
[400652758,1767768641387,-8045.68317559,0.00014668,2]
[400652759,1767768641397,-885.06,0.00014668,2]
[400652760,1767768641406,-186349.05861513,0.00014668,2]
[400652761,1767768641452,-305961.52421387,0.00014668,2]
[400652762,1767768641461,-5416.70070875,0.00014695,2]
[400652763,1767768641471,-900.0,0.00014768,2]
[400652764,1767768641480,-761.0,0.0001478,2]
[400652765,1767768641489,-1002.70184396,0.00014795,2]
[400652766,1767768641499,-152.05252624,0.00014795,2]
[400652767,1767768641508,-1500.0,0.00014795,2]
[400652768,1767768641518,-1006.91111939,0.00014795,2]
[400652769,1767768641528,-1500.0,0.00014795,2]
[400652770,1767768641537,-1500.0,0.00014795,2]
[400652771,1767768641547,-1500.0,0.00014795,2]
[400652772,1767768641556,-1500.0,0.00014795,2]
[400652773,1767768641565,-587.0,0.00014843,2]
[400652774,1767768641574,-166.0,0.00014843,2]
[400652775,1767768641583,-2000.0,0.00014916,2]
[400652776,1767768641595,-2000.0,0.00014916,2]
[400652777,1767768641605,-2000.0,0.00014916,2]
[400652778,1767768641614,-2000.0,0.00014916,2]
[400652779,1767768641624,-2000.0,0.00014916,2]
[400652780,1767768641639,-761.0,0.00014917,2]
[400652781,1767768641653,-1000.0,0.00015,2]
[400652782,1767768641662,-434.94128764,0.00015,2]
[400652783,1767768641675,-100000.0,0.00015028,2]
[400652784,1767768641684,-761.0,0.00015054,2]
[400652785,1767768641694,-800.0,0.00015068,2]
[400652786,1767768641704,-761.0,0.00015191,2]
[400652787,1767768641714,-580.28817045,0.00015233,2]
[400652788,1767768641725,-1200.0,0.00015316,2]
[400652789,1767768641734,-761.0,0.00015328,2]
[400652790,1767768641744,-1002.73058689,0.00015342,2]
[400652791,1767768641757,-636.08782837,0.00015342,2]
[400652792,1767768641767,-2000.0,0.00015342,2]
[400652793,1767768641777,-2000.0,0.00015342,2]
[400652794,1767768641787,-2000.0,0.00015342,2]
[400652795,1767768641797,-503.9265234,0.00015384,2]
[400652796,1767768641806,-329.01935828,0.00015451,2]
[400652797,1767768641816,-2500.0,0.00015464,2]
[400652798,1767768641827,-2500.0,0.00015464,2]
[400652799,1767768641836,-2500.0,0.00015464,2]
[400652800,1767768641846,-2500.0,0.00015464,2]
[400652801,1767768641855,-500.0,0.00015494,2]
[400652802,1767768641865,-210.40515533,0.00015494,2]
[400652803,1767768641875,-500.0,0.00015494,2]
[400652804,1767768641885,-174.35129213,0.00015494,2]
[400652805,1767768641895,-272.15124773,0.00015494,2]
[400652806,1767768641904,-238.56857466,0.00015494,2]
[400652807,1767768641914,-500.0,0.00015494,2]
[400652808,1767768641924,-500.0,0.00015494,2]
[400652809,1767768641934,-500.0,0.00015494,2]
[400652810,1767768641944,-502.92226904,0.00015631,2]
[400652811,1767768641953,-500.0,0.00015631,2]
[400652812,1767768641963,-150.86745425,0.00015631,2]
[400652813,1767768641973,-500.0,0.00015631,2]
[400652814,1767768641983,-500.0,0.00015631,2]
[400652815,1767768641992,-500.0,0.00015631,2]
[400652816,1767768642001,-156.51468923,0.00015631,2]
[400652817,1767768642011,-864.0,0.00015668,2]
[400652818,1767768642020,-155.2076157,0.00015768,2]
[400652819,1767768642029,-500.0,0.00015768,2]
[400652820,1767768642039,-500.0,0.00015768,2]
[400652821,1767768642048,-500.0,0.00015768,2]
[400652822,1767768642057,-155.41975541,0.00015768,2]
[400652823,1767768642067,-1500.0,0.00015864,2]
[400652824,1767768642077,-2500.0,0.0001589,2]
[400652825,1767768642087,-2500.0,0.0001589,2]
[400652826,1767768642101,-2500.0,0.0001589,2]
[400652827,1767768642112,-500.0,0.00015905,2]
[400652828,1767768642121,-621.60339535,0.00015905,2]
[400652829,1767768642131,-500.0,0.00015905,2]
[400652830,1767768642140,-177.57781539,0.00015905,2]
[400652831,1767768642149,-15000.0,0.00015939,2]
[400652832,1767768642158,-1000.0,0.00016,2]
[400652833,1767768642168,-3000.0,0.00016012,2]
[400652834,1767768642183,-3000.0,0.00016012,2]
[400652835,1767768642193,-3000.0,0.00016012,2]
[400652836,1767768642205,-3000.0,0.00016012,2]
[400652837,1767768642216,-206.74458148,0.00016042,2]
[400652838,1767768642226,-500.0,0.00016042,2]
[400652839,1767768642235,-500.0,0.00016042,2]
[400652840,1767768642244,-250.0,0.00016124,2]
[400652841,1767768642253,-1600.0,0.00016164,2]
[400652842,1767768642262,-500.0,0.00016179,2]
[400652843,1767768642271,-500.0,0.00016179,2]
[400652844,1767768642280,-153.33527069,0.00016179,2]
[400652845,1767768642289,-823.0,0.00016289,2]
[400652846,1767768642299,-500.0,0.00016316,2]
[400652847,1767768642308,-500.0,0.00016316,2]
[400652848,1767768642318,-603.39831266,0.00016412,2]
[400652849,1767768642328,-3000.0,0.00016438,2]
[400652850,1767768642338,-3000.0,0.00016438,2]
[400652851,1767768642350,-3000.0,0.00016438,2]
[400652852,1767768642359,-500.0,0.00016453,2]
[400652853,1767768642369,-500.0,0.00016453,2]
[400652854,1767768642380,-3500.0,0.0001656,2]
[400652855,1767768642390,-3447.60884294,0.0001656,2]
[400652856,1767768642400,-3500.0,0.0001656,2]
[400652857,1767768642410,-3500.0,0.0001656,2]
[400652858,1767768642421,-500.0,0.0001659,2]
[400652859,1767768642431,-364.24644296,0.0001659,2]
[400652860,1767768642441,-783.5316696,0.00016685,5]
[400652861,1767768642454,-500.0,0.00016727,2]
[400652862,1767768642464,-500.0,0.00016864,2]
[400652863,1767768642475,-503.9265234,0.00016975,2]
[400652864,1767768642485,-3500.0,0.00016986,2]
[400652865,1767768642496,-3500.0,0.00016986,2]
[400652866,1767768642507,-3500.0,0.00016986,2]
[400652867,1767768642517,-500.0,0.00017001,2]
[400652868,1767768642527,-4000.0,0.00017108,2]
[400652869,1767768642538,-4000.0,0.00017108,2]
[400652870,1767768642548,-1627.52709265,0.00017108,2]
[400652871,1767768642559,-302.47712024,0.00017138,2]
[400652872,1767768642570,-1844.19557938,0.00017201,2]
[400652873,1767768642580,-8045.68317556,0.00017213,2]
[400652874,1767768642590,-185.7891139,0.00017233,2]
[400652875,1767768642603,-1000.0,0.00017235,2]
[400652876,1767768642612,-2400.0,0.0001726,2]
[400652877,1767768642622,-372.56603805,0.00017451,2]
[400652878,1767768642639,-4000.0,0.00017534,2]
[400652879,1767768642648,-4000.0,0.00017534,2]
[400652880,1767768642658,-4000.0,0.00017534,2]
[400652881,1767768642668,-4500.0,0.00017656,2]
[400652882,1767768642678,-4500.0,0.00017656,2]
[400652883,1767768642688,-1152.0,0.00017876,2]
[400652884,1767768642698,-2334.52993217,0.00017973,2]
[400652885,1767768642708,-4500.0,0.00018082,2]
[400652886,1767768642718,-2382.05613913,0.00018082,2]
[400652887,1767768642729,-4500.0,0.00018082,2]
[400652888,1767768642738,-15924.46772426,0.00018082,3]
[400652889,1767768642748,-1005.23639622,0.00018137,8]
[400652890,1767768642758,-5000.0,0.00018204,2]
[400652891,1767768642768,-5000.0,0.00018204,2]
[400652892,1767768642777,-248.14949882,0.00018234,2]
[400652893,1767768642787,-802.30074464,0.00018356,2]